bitfinex-derivatives/quotes_BTCF0:USTF0_20210111
["timestamp","ask_amount","ask_price","bid_price","bid_amount"]
[1610396366535,0.13632608,31822.0,31820.0,0.13632608]
[1610396366735,4.1588,31840.0,31808.0,4.66887]
[1610396368037,0.13632608,31819.0,31813.0,0.13632608]
[1610396368240,4.1588,31840.0,31813.0,0.13632608]
[1610396370140,0.13632608,31814.0,31809.0,0.13632608]
[1610396370540,1.13632608,31814.0,31809.0,0.13632608]
[1610396372140,0.13632608,31810.0,31809.0,0.13632608]
[1610396372342,0.13632608,31810.0,31808.0,4.66887]
[1610396372742,0.13632608,31810.0,31808.0,0.11077]
[1610396372941,0.13632608,31810.0,31799.0,1.0]
[1610396373745,3.6108,31809.0,31799.0,1.0]
[1610396374145,0.13632608,31800.0,31799.0,1.0]
[1610396374543,6.13632608,31800.0,31779.0,4.2881]
[1610396374750,6.13632608,31800.0,31763.0,1.0]
[1610396374942,6.13632608,31800.0,31767.0,3.955]
[1610396375147,6.23893608,31800.0,31767.0,3.955]
[1610396375545,6.33343608,31800.0,31767.0,3.955]
[1610396376046,0.13632608,31783.0,31767.0,4.09132608]
[1610396376443,1.13632608,31783.0,31767.0,4.955]
[1610396376644,1.13632608,31783.0,31767.0,1.0]
[1610396376844,4.82372608,31783.0,31767.0,1.0]
[1610396377044,4.6874,31783.0,31767.0,1.0]
[1610396377343,1.0,31783.0,31767.0,1.0]
[1610396377544,1.0,31783.0,31769.0,4.7576]
[1610396378145,1.0,31783.0,31782.0,0.60354042]
[1610396378548,0.13632608,31789.0,31782.0,1.60354042]
[1610396379144,1.0,31798.0,31782.0,1.60354042]
[1610396379945,1.0,31798.0,31783.0,4.9446]
[1610396380146,1.0,31798.0,31797.0,0.13632608]
[1610396380352,0.6869,31798.0,31797.0,0.21846608]
[1610396380547,1.0,31831.0,31797.0,10.46046608]
[1610396380947,1.0,31831.0,31797.0,6.21846608]
[1610396381157,1.0,31831.0,31810.0,3.5994]
[1610396381349,1.0,31831.0,31810.0,3.70598]
[1610396382547,1.0,31831.0,31830.0,0.13632608]
[1610396382748,0.2726,31851.0,31830.0,0.21872608]
[1610396383350,0.2726,31851.0,31832.0,4.79]
[1610396384451,0.2726,31851.0,31850.0,0.13632608]
[1610396385451,0.2726,31851.0,31850.0,0.10632608]
[1610396385650,0.11604944,31853.0,31850.0,0.10632608]
[1610396386056,1.0,31865.0,31850.0,0.10632608]
[1610396386452,0.13632608,31861.0,31857.0,0.13632608]
[1610396387658,1.0,31868.0,31857.0,0.13632608]
[1610396387882,1.0,31868.0,31862.0,4.9933]
[1610396388675,0.10141,31881.0,31862.0,4.9933]
[1610396388676,0.10141,31881.0,31867.0,0.13632608]
[1610396388879,1.0408762,31896.0,31867.0,0.21232608]
[1610396389070,0.13632608,31903.0,31867.0,0.21232608]
[1610396389658,0.13632608,31903.0,31874.0,4.8213]
[1610396389858,1.04100478,31911.0,31874.0,4.92486]
[1610396390361,1.04086853,31914.0,31874.0,4.92486]
[1610396390764,1.0,31910.0,31908.0,0.13632608]
[1610396391565,1.0,31910.0,31908.0,0.13441641]
[1610396392563,1.0,31910.0,31909.0,3.5107]
[1610396392764,0.09639,31931.0,31909.0,3.58383]
[1610396393366,1.03881024,31940.0,31909.0,3.58383]
[1610396393565,1.03793163,31943.0,31909.0,3.58383]
[1610396393967,1.03788357,31946.0,31909.0,3.58383]
[1610396394166,1.03788357,31946.0,31909.0,0.07313]
[1610396394370,1.03783142,31949.0,31925.0,4.4344]
[1610396394565,1.03783142,31949.0,31925.0,0.06977]
[1610396394765,1.0,31940.0,31925.0,0.06977]
[1610396395165,0.13632608,31931.0,31925.0,0.06977]
[1610396395364,1.0,31940.0,31925.0,0.06977]
[1610396396667,1.0,31959.0,31939.0,1.0]
[1610396396865,1.0,31959.0,31939.0,1.08219]
[1610396397066,0.71303085,31959.0,31939.0,1.08219]
[1610396397266,0.71303085,31959.0,31958.0,0.13632608]
[1610396397468,0.13632608,31960.0,31958.0,0.13632608]
[1610396397868,1.0,31965.0,31950.0,0.0797]
[1610396398270,1.0,31965.0,31955.0,4.3334]
[1610396398471,0.0093887,31961.0,31955.0,4.3334]
[1610396398871,1.0,31965.0,31950.0,0.0797]
[1610396399273,1.0,31965.0,31953.0,0.13632608]
[1610396399470,0.00936639,31970.0,31950.0,0.0797]
[1610396399671,0.02789631,31971.0,31952.0,4.5919]
[1610396400070,0.02785964,31974.0,31952.0,4.5919]
[1610396400470,0.0093475,31977.0,31952.0,4.5919]
[1610396400871,0.02779988,31981.0,31952.0,4.5919]
[1610396401271,0.13632608,31977.0,31975.0,0.13632608]
[1610396401775,0.13632608,31977.0,31975.0,0.04101258]
[1610396401973,0.13632608,31977.0,31975.0,0.03910634]
[1610396402574,0.13632608,31977.0,31973.0,1.0]
[1610396403174,0.09121,31982.0,31976.0,0.13632608]
[1610396403375,0.02763528,31990.0,31976.0,0.13632608]
[1610396403976,0.08978,31991.0,31976.0,0.13632608]
[1610396404277,0.01835405,31995.0,31976.0,0.13632608]
[1610396404476,0.0092674,31996.0,31976.0,0.13632608]
[1610396404675,0.02756194,31999.0,31976.0,0.13632608]
[1610396405175,0.13632608,31985.0,31984.0,0.13632608]
[1610396405379,0.00924776,31999.0,31984.0,0.13632608]
[1610396405577,0.00923328,32001.0,31984.0,0.13632608]
[1610396405776,0.00923328,32001.0,31978.0,0.09458]
[1610396405977,0.0868,32001.0,31978.0,0.09458]
[1610396407278,0.0868,32001.0,31984.0,0.13632608]
[1610396408279,0.0868,32001.0,31982.0,5.1554]
[1610396408879,0.07047,32008.0,31982.0,5.1554]
[1610396409282,0.07047,32008.0,32007.0,0.13632608]
[1610396409481,0.2734,32030.0,31999.0,3.6367]
[1610396409681,0.02729621,32032.0,31999.0,3.6367]
[1610396410283,0.02729621,32032.0,31996.0,0.09204]
[1610396410284,0.2843,32033.0,32008.0,3.7032]
[1610396410692,0.78994893,32045.0,32008.0,3.7032]
[1610396410693,0.0091352,32047.0,32008.0,3.7032]
[1610396411085,0.02722446,32050.0,32008.0,3.7032]
[1610396411284,0.02722446,32050.0,32028.0,0.13632608]
[1610396411483,1.0,32037.0,32028.0,0.13632608]
[1610396411886,0.7,32037.0,32021.0,1.0]
[1610396412084,0.07704,32041.0,32022.0,0.6946]
[1610396413186,0.07704,32041.0,32035.0,0.13632608]
[1610396413590,0.52084275,32070.0,32036.0,4.5673]
[1610396413790,0.2988,32072.0,32036.0,4.5673]
[1610396414189,0.0947,32079.0,32036.0,4.5673]
[1610396414392,0.64102273,32080.0,32036.0,4.5673]
[1610396414589,1.28284758,32091.0,32035.0,0.13632608]
[1610396414590,0.73310269,32087.0,32035.0,0.13632608]
[1610396414990,0.0933,32087.0,32035.0,0.13632608]
[1610396415188,0.0933,32087.0,32032.0,4.1398]
[1610396415189,0.13632608,32036.0,32032.0,4.1398]
[1610396415389,0.11144,32060.0,32030.0,0.08961]
[1610396417291,5.0522,32076.0,32059.0,0.13632608]
[1610396417292,0.13632608,32064.0,32059.0,0.13632608]
[1610396417894,0.5809,32091.0,32047.0,0.08272]
[1610396418093,0.5809,32091.0,32051.0,4.8667]
[1610396418303,0.5809,32091.0,32047.0,0.08272]
[1610396418493,0.67128,32091.0,32047.0,0.08272]
[1610396419101,0.67128,32091.0,32047.0,4.71732]
[1610396419294,0.13632608,32066.0,32064.0,0.13632608]
[1610396419702,0.38548,32091.0,32064.0,0.13632608]
[1610396419895,0.08426,32083.0,32064.0,0.13632608]
[1610396420505,0.08426,32083.0,32063.0,3.52387392]
[1610396421301,0.08426,32083.0,32070.0,0.13632608]
[1610396422100,0.08426,32083.0,32068.0,0.08617]
[1610396422311,0.08426,32083.0,32061.0,0.08275]
[1610396423100,0.08426,32083.0,32049.0,5.0447]
[1610396423307,0.13632608,32050.0,32049.0,5.0447]
[1610396423513,0.13632608,32050.0,32047.0,0.08272]
[1610396423714,0.13632608,32050.0,32028.0,4.1364]
[1610396424104,0.07443,32067.0,32028.0,4.1364]
[1610396424499,0.07443,32067.0,32028.0,4.20511]
[1610396425397,0.13632608,32029.0,32028.0,4.20511]
[1610396425598,0.08621,32054.0,32030.0,0.09969047]
[1610396426199,1.08621,32054.0,32038.0,1.0]
[1610396426998,1.08621,32054.0,32038.0,0.741]
[1610396427399,0.08621,32054.0,32040.0,0.13632608]
[1610396427600,0.08621,32054.0,32030.0,0.09969047]
[1610396427800,0.07443,32067.0,32030.0,0.09969047]
[1610396428001,0.07443,32067.0,32030.0,0.19451047]
[1610396429001,4.0393,32069.0,32030.0,0.92841047]
[1610396429403,4.0393,32069.0,32059.0,0.13632608]
[1610396429603,1.09728,32074.0,32059.0,0.13632608]
[1610396430004,1.0,32074.0,32059.0,0.13632608]
[1610396430203,1.0,32074.0,32059.0,0.21684608]
[1610396431407,0.08426,32083.0,32059.0,0.21684608]
[1610396431607,0.13632608,32078.0,32076.0,0.13632608]
[1610396431807,0.5483,32114.0,32076.0,0.13632608]
[1610396432007,0.07753,32098.0,32077.0,4.3292]
[1610396432208,0.07753,32098.0,32076.0,0.22927608]
[1610396432609,0.07753,32098.0,32082.0,4.5405]
[1610396433009,0.08627,32109.0,32082.0,4.5405]
[1610396433609,0.08627,32109.0,32108.0,0.13632608]
[1610396433808,0.08627,32109.0,32090.0,0.09386]
[1610396435013,0.08627,32109.0,32076.0,0.09295]
[1610396435412,1.0,32096.0,32080.0,1.0]
[1610396435610,1.0,32096.0,32090.0,0.13632608]
[1610396435811,1.0,32096.0,32090.0,0.13442771]
[1610396436013,1.0,32096.0,32090.0,0.21873771]
[1610396437013,1.0,32096.0,32090.0,0.08431]
[1610396437414,4.6909,32117.0,32090.0,0.08431]
[1610396437617,0.2763,32137.0,32090.0,0.08431]
[1610396437815,3.6836,32136.0,32090.0,0.08431]
[1610396438014,3.76874,32136.0,32090.0,0.08431]
[1610396439014,0.0936,32135.0,32090.0,0.08431]
[1610396439417,0.0936,32135.0,32076.0,0.09295]
[1610396439616,4.6679,32123.0,32082.0,0.13632608]
[1610396439816,0.0929,32122.0,32062.0,3.7216]
[1610396440219,4.76762,32123.0,32062.0,3.7216]
[1610396440417,4.65977624,32123.0,32062.0,3.7216]
[1610396442320,0.09972,32123.0,32116.0,0.13632608]
[1610396442722,0.09972,32123.0,32101.0,4.85628]
[1610396443320,0.09972,32123.0,32101.0,0.10908]
[1610396444122,3.8617,32140.0,32101.0,0.10908]
[1610396444322,0.2955,32150.0,32101.0,0.10908]
[1610396444522,0.5292869,32166.0,32131.0,0.13632608]
[1610396444921,0.5292869,32166.0,32144.0,4.2812]
[1610396445122,0.52979468,32182.0,32144.0,4.2812]
[1610396445523,0.88287345,32189.0,32144.0,4.18640098]
[1610396445524,0.52897068,32189.0,32144.0,4.18640098]
[1610396445824,0.53005566,32194.0,32144.0,4.18640098]
[1610396446224,0.0938,32196.0,32139.0,0.10244]
[1610396446424,0.13632608,32140.0,32137.0,0.13632608]
[1610396447225,0.05387498,32148.0,32137.0,0.13632608]
[1610396447425,0.05387498,32148.0,32131.0,0.08583]
[1610396447625,0.08098,32161.0,32131.0,0.08583]
[1610396448736,0.08098,32161.0,32138.0,0.13632608]
[1610396449529,0.08098,32161.0,32138.0,0.13443015]
[1610396449929,0.08098,32161.0,32138.0,0.21604015]
[1610396450730,0.13632608,32156.0,32155.0,0.13632608]
[1610396451130,0.08098,32161.0,32155.0,0.13632608]
[1610396451331,0.2817,32185.0,32155.0,0.13632608]
[1610396451530,0.2817,32185.0,32153.0,4.6863]
[1610396451733,0.39395,32185.0,32153.0,4.6863]
[1610396452734,0.39395,32185.0,32160.0,0.13632608]
[1610396453133,0.39395,32185.0,32153.0,4.6863]
[1610396453934,0.11225,32185.0,32153.0,4.6863]
[1610396454135,0.11225,32185.0,32138.0,0.08161]
[1610396454535,0.11225,32185.0,32152.0,4.0921]
[1610396454735,0.11225,32185.0,32177.0,0.13632608]
[1610396455333,1.11225,32185.0,32175.0,4.9722]
[1610396455536,1.11225,32185.0,32169.0,1.0]
[1610396456734,1.11225,32185.0,32174.0,0.13632608]
[1610396457135,1.11225,32185.0,32169.0,1.0]
[1610396457336,1.0,32175.0,32166.0,0.09087]
[1610396457535,1.0,32175.0,32152.0,0.09306]
[1610396458337,1.0,32175.0,32151.0,1.0]
[1610396458739,0.13632608,32152.0,32151.0,1.0]
[1610396459138,0.13632608,32152.0,32151.0,0.9078]
[1610396459337,0.09465,32154.0,32130.0,3.6171]
[1610396459538,0.09465,32154.0,32131.0,0.09049]
[1610396459940,0.18885,32154.0,32131.0,0.09049]
[1610396460139,0.18885,32154.0,32121.0,0.11068]
[1610396460742,0.18885,32154.0,32121.0,8e-05]
[1610396460938,0.18885,32154.0,32106.0,3.7886]
[1610396461139,0.18885,32154.0,32093.0,0.1861]
[1610396461340,0.18885,32154.0,32115.0,0.13632608]
[1610396461542,5.0,32131.0,32115.0,0.13632608]
[1610396461740,5.06934,32131.0,32106.0,0.08042]
[1610396462640,5.16124,32131.0,32106.0,0.08042]
[1610396463346,0.13632608,32107.0,32106.0,0.21674608]
[1610396463943,0.13632608,32107.0,32106.0,0.08042]
[1610396464143,0.13632608,32107.0,32095.0,1.0]
[1610396464544,0.22912608,32107.0,32095.0,1.0]
[1610396464743,0.13632608,32107.0,32095.0,1.0]
[1610396465344,1.0,32111.0,32095.0,1.0]
[1610396465345,0.13632608,32096.0,32095.0,1.0]
[1610396465548,0.13632608,32096.0,32068.0,3.9962]
[1610396465744,0.08368,32102.0,32068.0,3.9962]
[1610396465946,0.08368,32102.0,32068.0,0.08787]
[1610396467150,0.17658,32102.0,32055.0,0.09749]
[1610396467348,0.13632608,32056.0,32055.0,0.09749]
[1610396467551,0.13632608,32056.0,32055.0,0.09439]
[1610396468148,0.13632608,32056.0,32042.0,0.13632608]
[1610396469349,0.13632608,32043.0,32042.0,0.13632608]
[1610396469749,0.13632608,32043.0,32015.0,0.2818]
[1610396469950,0.13632608,32043.0,31985.0,0.0942]
[1610396470353,0.10817,32061.0,31994.0,4.6766]
[1610396470553,0.10817,32061.0,31995.0,0.0924]
[1610396470752,0.10939,32070.0,31995.0,0.0924]
[1610396471154,0.0947,32069.0,31995.0,0.0924]
[1610396471353,0.0947,32069.0,32068.0,0.13632608]
[1610396471755,0.08154,32078.0,32068.0,1.13632608]
[1610396472356,1.0,32089.0,32068.0,1.13632608]
[1610396473357,1.0,32089.0,32077.0,0.13632608]
[1610396473759,1.0,32090.0,32077.0,0.23124608]
[1610396475357,1.0,32090.0,32089.0,0.13632608]
[1610396475757,0.10188,32110.0,32090.0,5.0]
[1610396476156,0.65897151,32121.0,32090.0,5.0]
[1610396476360,1.0,32122.0,32090.0,5.0]
[1610396476361,1.0,32122.0,32094.0,3.5319]
[1610396477357,1.0,32122.0,32121.0,0.13632608]
[1610396477758,0.13632608,32138.0,32121.0,0.13632608]
[1610396477958,0.6591931,32146.0,32119.0,0.11342]
[1610396478157,0.65915673,32149.0,32119.0,0.11342]
[1610396478556,0.65944073,32148.0,32119.0,0.11342]
[1610396478757,0.75792073,32148.0,32119.0,0.11342]
[1610396478960,1.11055679,32148.0,32119.0,0.11342]
[1610396479359,0.09848,32148.0,32147.0,0.13632608]
[1610396479959,0.09848,32148.0,32126.0,0.10313]
[1610396480759,0.09848,32148.0,32107.0,3.8364]
[1610396480959,0.89285404,32147.0,32107.0,3.8364]
[1610396481359,0.65991767,32142.0,32139.0,0.13632608]
[1610396481762,0.89311324,32147.0,32139.0,0.13632608]
[1610396481960,0.09848,32148.0,32139.0,0.13442999]
[1610396482360,0.66005794,32152.0,32133.0,0.10835]
[1610396482561,0.577,32148.0,32133.0,0.10835]
[1610396482770,0.66005794,32152.0,32133.0,0.10835]
[1610396482968,0.66039759,32141.0,32133.0,0.04575]
[1610396483164,0.75415759,32141.0,32133.0,0.04575]
[1610396483362,0.13632608,32134.0,32098.0,3.99842]
[1610396483564,0.22485608,32134.0,32098.0,3.99842]
[1610396483764,1.0,32126.0,32110.0,1.0]
[1610396483964,1.09345,32126.0,32110.0,1.0]
[1610396485165,0.66175757,32120.0,32110.0,1.0]
[1610396485366,0.13632608,32111.0,32110.0,1.0]
[1610396485567,0.21464608,32111.0,32110.0,1.0]
[1610396485766,0.21464608,32111.0,32096.0,1.0]
[1610396487467,0.13632608,32097.0,32096.0,1.0]
[1610396487868,0.13632608,32097.0,32069.0,4.0003]
[1610396487869,1.13632608,32097.0,32071.0,1.0]
[1610396488069,1.0,32097.0,32071.0,1.0]
[1610396488468,1.0,32097.0,32081.0,5.1245]
[1610396488868,1.0,32097.0,32071.0,1.0]
[1610396489468,0.13632608,32095.0,32071.0,1.0]
[1610396489868,1.13632608,32095.0,32078.0,1.0]
[1610396490369,1.0,32095.0,32078.0,1.0]
[1610396491470,1.13632608,32095.0,32082.0,0.13632608]
[1610396491873,0.13632608,32095.0,32083.0,1.0]
[1610396492271,1.0,32099.0,32083.0,1.0]
[1610396492470,1.0,32099.0,32084.0,0.08538]
[1610396492669,1.0,32099.0,32091.0,0.10911]
[1610396493869,0.66766632,32109.0,32091.0,0.10911]
[1610396494070,0.74601177,32111.0,32098.0,0.13632608]
[1610396494272,0.74601177,32111.0,32098.0,0.24364608]
[1610396494475,0.07832,32111.0,32098.0,0.24364608]
[1610396494672,0.66771645,32113.0,32098.0,0.24364608]
[1610396494872,0.66763846,32115.0,32098.0,0.24364608]
[1610396495272,0.66759704,32117.0,32098.0,0.10732]
[1610396495672,0.6675549,32118.0,32101.0,3.7194]
[1610396495871,0.6675549,32118.0,32116.0,1.0]
[1610396496073,0.13632608,32139.0,32117.0,0.10632608]
[1610396496473,0.6672635,32136.0,32117.0,0.10632608]
[1610396496874,0.66716486,32141.0,32117.0,0.77122608]
[1610396497076,0.66716486,32141.0,32117.0,0.6649]
[1610396497273,1.0,32145.0,32117.0,0.6649]
[1610396497873,0.66695557,32149.0,32143.0,1.0]
[1610396498073,0.66695557,32149.0,32143.0,1.09456]
[1610396498274,0.66691941,32150.0,32143.0,1.09456]
[1610396498673,0.81512676,32152.0,32149.0,0.1344308]
[1610396499073,0.6667918,32150.0,32149.0,0.1344308]
[1610396499474,0.88732469,32151.0,32143.0,1.09456]
[1610396499877,0.66664953,32153.0,32143.0,0.09456]
[1610396500277,0.39390488,32154.0,32143.0,0.09456]
[1610396500675,1.51669679,32169.0,32143.0,0.09456]
[1610396500676,0.81475308,32157.0,32143.0,0.09456]
[1610396500875,0.13632608,32151.0,32143.0,0.09456]
[1610396501075,0.81469261,32159.0,32143.0,0.09456]
[1610396501877,0.81457578,32158.0,32143.0,0.09456]
[1610396502475,0.81415741,32165.0,32143.0,0.09456]
[1610396502876,0.81415741,32165.0,32150.0,0.13632608]
[1610396503076,0.81415741,32165.0,32150.0,0.21468608]
[1610396503476,0.92515364,32168.0,32150.0,0.21468608]
[1610396503477,0.81411651,32168.0,32150.0,0.21468608]
[1610396503776,1.0,32161.0,32150.0,0.21468608]
[1610396503976,1.0,32161.0,32150.0,0.07836]
[1610396504377,1.07347,32161.0,32145.0,1.0]
[1610396504578,0.81383353,32154.0,32145.0,0.7216]
[1610396504780,0.13632608,32146.0,32120.0,4.2397]
[1610396504978,0.13632608,32146.0,32109.0,0.13632608]
[1610396505379,0.01,32143.0,32109.0,0.13632608]
[1610396505579,0.09489,32143.0,32109.0,0.13632608]
[1610396505780,0.90912125,32143.0,32109.0,0.13632608]
[1610396505979,0.90912125,32143.0,32098.0,4.51862]
[1610396506180,0.81424147,32137.0,32098.0,4.51862]
[1610396506581,0.81446305,32134.0,32098.0,4.51862]
[1610396506781,1.0,32106.0,32098.0,4.51862]
[1610396506982,1.0,32106.0,32098.0,0.10732]
[1610396507184,1.13632608,32106.0,32105.0,0.13632608]
[1610396507584,1.0,32106.0,32102.0,0.10209]
[1610396508789,0.01,32109.0,32103.0,1.0]
[1610396509186,0.01,32109.0,32108.0,0.12632608]
[1610396509990,1.0,32119.0,32108.0,0.12632608]
[1610396510789,0.81452152,32140.0,32108.0,0.12632608]
[1610396510990,0.01,32143.0,32108.0,0.12632608]
[1610396511189,0.01,32143.0,32142.0,0.13632608]
[1610396511589,0.01,32143.0,32131.0,0.07978]
[1610396511790,0.11576,32143.0,32131.0,0.07978]
[1610396512190,0.81464811,32139.0,32131.0,0.07788372]
[1610396512390,0.81464811,32139.0,32105.0,4.9042]
[1610396512593,0.81484991,32138.0,32105.0,4.9042]
[1610396512890,0.11576,32143.0,32105.0,4.9042]
[1610396512891,0.81495145,32137.0,32105.0,4.9042]
[1610396513292,0.81494378,32139.0,32132.0,0.13632608]
[1610396513491,0.81494378,32139.0,32123.0,0.11277]
[1610396513691,0.81510069,32138.0,32123.0,0.11277]
[1610396514092,0.81510286,32135.0,32123.0,0.11277]
[1610396514391,0.81544085,32136.0,32123.0,0.11277]
[1610396514591,0.81544085,32136.0,32114.0,0.10523]
[1610396514791,0.81546655,32135.0,32114.0,0.10523]
[1610396514991,1.0,32125.0,32114.0,0.10523]
[1610396515194,0.13632608,32115.0,32114.0,0.10523]
[1610396516192,0.13632608,32115.0,32109.0,1.0]
[1610396516392,1.0,32125.0,32109.0,1.0]
[1610396516992,0.81668644,32125.0,32110.0,1.0]
[1610396517191,0.81668644,32125.0,32116.0,0.13632608]
[1610396517393,1.0,32126.0,32116.0,0.13632608]
[1610396518595,1.0,32126.0,32110.0,1.10279]
[1610396518793,1.07661,32126.0,32110.0,1.10279]
[1610396518995,0.07661,32126.0,32110.0,0.10279]
[1610396519194,0.13632608,32111.0,32103.0,0.13632608]
[1610396519394,0.13632608,32111.0,32102.0,0.10209]
[1610396519596,0.13632608,32111.0,32099.0,4.759]
[1610396521398,0.81780643,32124.0,32101.0,0.13632608]
[1610396521595,0.81787037,32122.0,32101.0,0.13632608]
[1610396522398,0.81790264,32121.0,32101.0,0.13632608]
[1610396522898,0.817901,32120.0,32101.0,0.13632608]
[1610396523097,1.0,32112.0,32101.0,0.13632608]
[1610396523296,0.13632608,32102.0,32101.0,0.13632608]
[1610396523496,0.13632608,32102.0,32099.0,4.759]
[1610396524199,0.13632608,32102.0,32098.0,0.09468]
[1610396524797,0.13632608,32102.0,32098.0,0.00428]
[1610396524996,1.0,32099.0,32072.0,1.0]
[1610396525396,0.13632608,32095.0,32072.0,1.0]
[1610396525599,1.0,32099.0,32072.0,1.0]
[1610396525796,1.0,32099.0,32081.0,0.07239]
[1610396526598,1.0,32099.0,32074.0,0.09514]
[1610396526998,0.08267,32102.0,32074.0,0.09514]
[1610396527897,0.13632608,32095.0,32079.0,0.13632608]
[1610396528297,0.23090608,32095.0,32079.0,0.13632608]
[1610396528999,0.23090608,32095.0,32086.0,1.0]
[1610396529400,0.13632608,32095.0,32086.0,1.0]
[1610396530300,0.22710608,32095.0,32086.0,1.0]
[1610396530502,0.09078,32095.0,32086.0,1.0]
[1610396531102,0.09078,32095.0,32094.0,0.47370014]
[1610396531707,0.22710608,32095.0,32094.0,0.47370014]
[1610396531907,0.13632608,32095.0,32094.0,0.47370014]
[1610396532909,0.13632608,32095.0,32094.0,0.37370014]
[1610396533109,0.24992608,32095.0,32094.0,0.37370014]
[1610396535114,0.1136,32095.0,32094.0,0.37370014]
[1610396535512,0.90446199,32102.0,32094.0,0.37370014]
[1610396535713,0.90446199,32102.0,32101.0,0.13632608]
[1610396535914,0.08267,32102.0,32101.0,0.13632608]
[1610396536115,0.13632608,32103.0,32101.0,0.13632608]
[1610396537915,0.13632608,32103.0,32098.0,0.09895]
[1610396538516,0.13632608,32103.0,32094.0,0.37370014]
[1610396538717,0.13632608,32103.0,32094.0,0.27380014]
[1610396538916,0.13632608,32103.0,32094.0,0.26460014]
[1610396539719,0.90096542,32104.0,32094.0,0.26460014]
[1610396540117,0.82182039,32100.0,32094.0,0.26460014]
[1610396540317,0.13632608,32095.0,32094.0,0.26460014]
[1610396540519,0.23277608,32095.0,32094.0,0.17230014]
[1610396540719,6.93277608,32095.0,32092.0,0.48820014]
[1610396540919,12.93277608,32095.0,32058.0,5.0577]
[1610396541120,1.5,32092.0,32040.0,1.0]
[1610396541323,6.0,32093.0,32040.0,0.777]
[1610396541521,6.0,32093.0,32039.0,0.08387]
[1610396541522,0.82204882,32085.0,32039.0,0.08387]
[1610396541720,4.5921,32070.0,32039.0,0.08387]
[1610396541921,0.07639,32070.0,32039.0,0.08387]
[1610396542120,3.8499,32059.0,32039.0,7e-05]
[1610396542323,0.13632608,32040.0,32039.0,7e-05]
[1610396542522,0.13632608,32040.0,32030.0,0.13632608]
[1610396542921,0.13632608,32040.0,32017.0,3.5842]
[1610396543321,0.13632608,32040.0,32004.0,0.2908]
[1610396543521,0.13632608,32040.0,31994.0,1.91396237]
[1610396543924,0.13632608,32040.0,31992.0,1.9113691]
[1610396544123,3.44688226,32046.0,31992.0,1.9113691]
[1610396544322,0.13632608,32033.0,32029.0,0.13632608]
[1610396545323,0.07524,32047.0,32029.0,0.13632608]
[1610396545524,0.07524,32047.0,32029.0,0.24335608]
[1610396546326,0.07524,32047.0,32037.0,0.13632608]
[1610396547327,0.07524,32047.0,32029.0,0.10703]
[1610396547728,5.23186,32049.0,32029.0,0.10703]
[1610396548228,5.23186,32049.0,32034.0,0.13632608]
[1610396548828,5.23186,32049.0,32029.0,0.10703]
[1610396550231,5.23186,32049.0,32040.0,0.13632608]
[1610396550634,5.23186,32049.0,32029.0,0.10703]
[1610396550831,5.23186,32049.0,32011.0,3.7348]
[1610396552234,5.23186,32049.0,32035.0,0.13632608]
[1610396553833,5.23186,32049.0,32021.0,0.10201]
[1610396555036,5.23186,32049.0,32038.0,0.13632608]
[1610396557137,0.13632608,32039.0,32038.0,0.13632608]
[1610396558540,0.13632608,32039.0,32032.0,1.0]
[1610396559040,0.13632608,32033.0,32032.0,1.0]
[1610396559244,1.0,32048.0,32038.0,0.11757293]
[1610396559643,5.23186,32049.0,32038.0,0.11757293]
[1610396561141,5.23186,32049.0,32041.0,0.13632608]
[1610396561742,5.23186,32049.0,32038.0,0.11757293]
[1610396563141,0.13632608,32039.0,32038.0,0.11757293]
[1610396563542,5.07749118,32049.0,32038.0,0.11757293]
[1610396564744,0.08496,32049.0,32038.0,0.04997293]
[1610396564944,4.0064,32039.0,32038.0,0.00687293]
[1610396565143,4.08307,32039.0,32038.0,0.00687293]
[1610396565346,4.08307,32039.0,32011.0,0.08282]
[1610396565545,10.08307,32039.0,32011.0,0.08282]
[1610396565748,0.13632608,32012.0,32011.0,0.21914608]
[1610396566148,5.194,32020.0,32011.0,0.08282]
[1610396566746,5.194,32020.0,32011.0,0.06282]
[1610396567547,1.0,32014.0,32011.0,0.06282]
[1610396567948,4.9133,32012.0,31998.0,1.0]
[1610396568350,0.13632608,31999.0,31998.0,1.0]
[1610396569549,0.13632608,31999.0,31989.0,0.13632608]
[1610396569754,0.13632608,31999.0,31985.0,1.0]
[1610396569949,0.24110608,31999.0,31985.0,1.0]
[1610396570150,4.0158,31998.0,31985.0,1.0]
[1610396570350,0.13632608,31986.0,31985.0,1.0]
[1610396571659,0.13632608,31986.0,31975.0,0.13632608]
[1610396572255,0.13632608,31978.0,31975.0,0.13632608]
[1610396572470,0.07991,31992.0,31975.0,0.13632608]
[1610396573066,1e-05,31992.0,31982.0,3.867]
[1610396573264,0.07507,32017.0,31982.0,3.96631]
[1610396573460,0.07507,32017.0,31982.0,0.09931]
[1610396573656,0.07507,32017.0,31994.0,5.0635]
[1610396573872,0.291,32033.0,31994.0,5.16712]
[1610396574266,0.291,32033.0,32018.0,0.13632608]
[1610396574859,1.0,32041.0,32011.0,0.0766]
[1610396575057,1.0,32041.0,32012.0,5.2144]
[1610396575657,1.0,32037.0,32021.0,1.0]
[1610396575857,1.0725,32037.0,32021.0,1.0]
[1610396576357,1.0725,32037.0,32029.0,0.13632608]
[1610396578360,1.0725,32037.0,32033.0,0.13632608]
[1610396579261,1.0725,32037.0,32021.0,1.0]
[1610396579661,1.0,32033.0,32017.0,1.0]
[1610396580463,1.0,32033.0,32020.0,0.13632608]
[1610396580862,1.0,32033.0,32017.0,1.0]
[1610396581665,0.0725,32037.0,32023.0,1.0]
[1610396581864,1.0,32039.0,32023.0,1.0]
[1610396582264,1.0,32039.0,32031.0,0.13632608]
[1610396583566,0.2855,32048.0,32031.0,0.13632608]
[1610396583966,0.2855,32048.0,32018.0,3.5805]
[1610396584166,0.38439,32048.0,32018.0,3.5805]